Cogmind - Beta 10.1 @@@ ROGUE MODE // 2020.10.28 @ 22:37:05 Player: Atherys Result: Destroyed by S-10 Pest with Light Assault Rifle Performance ------------- Evolutions (0) 0 Regions Visited (2) 400 Robots Destroyed (34) 170 Value Destroyed (297) 297 Prototype IDs (2) 40 Alien Tech Used (0) 0 Bonus (0) 0 TOTAL SCORE: 907 Bonus ------- None Cogmind --------- Core Integrity 0/250 Matter 290/300 Energy 125/125 System Corruption 1% Temperature Cool (0) Movement Hovering (160) Ox1 Location -10/Mines Parts ------- > --- POWER (1) -------- Light Ion Engine > --- PROPULSION (2) --- Aluminum Leg Combat Airjet > --- UTILITY (2) ------ High-capacity Storage Unit Seismic Analyzer > --- WEAPON (2) ------- Assault Rifle Makeshift Axe > --- INVENTORY (12) --- Wheel Compact Wheel Small Storage Unit Large Storage Unit Signal Interpreter Improved Terrain Scanner Weapon Shielding Assault Rifle Mining Laser Peak State ------------ > --- POWER ------------ Light Ion Engine > --- PROPULSION ------- Aluminum Leg Combat Airjet > --- UTILITY ---------- High-capacity Storage Unit Seismic Analyzer > --- WEAPON ----------- Assault Rifle Makeshift Axe > --- INVENTORY -------- Wheel Compact Wheel Small Storage Unit Large Storage Unit Signal Interpreter Improved Terrain Scanner Weapon Shielding Assault Rifle Mining Laser [Rating: 15] Favorites ----------- Power Light Ion Engine Engine Light Ion Engine Propulsion Light Treads Treads Light Treads Leg Aluminum Leg Hover Unit Combat Airjet Utility Small Storage Unit Device Improved Terrain Scanner Storage Small Storage Unit Processor Seismic Analyzer Protection Improved Light Armor Plating Weapon Assault Rifle Ballistic Gun Assault Rifle Slashing Weapon Makeshift Axe Build | -11 -10 -10 ------- Run | Scr Mat Min Slots Evolved . | . . . Power . | . . . Propulsion . | . . . Utility . | . . . Weapon . | . . . Parts Attached 25 | 14 9 2 Power 5 | 2 3 . Engine 5 | 2 3 . Core . | . . . Reactor . | . . . Propulsion 7 | 5 2 . Treads 2 | 2 . . Leg 2 | 2 . . Wheel . | . . . Hover 3 | 1 2 . Flight . | . . . Utility 7 | 5 1 1 Device 1 | 1 . . Storage 3 | 1 1 1 Processor 2 | 2 . . Hackware . | . . . Protection 1 | 1 . . Artifact . | . . . Weapon 6 | 2 3 1 Energy Gun . | . . . Energy Cannon . | . . . Ballistic Gun 5 | 2 3 . Ballistic Cannon . | . . . Launcher . | . . . Special Weapon . | . . . Impact Weapon . | . . . Slashing Weapon 1 | . . 1 Piercing Weapon . | . . . Special Melee Weapon . | . . . Unidentified Prototypes . | . . . Parts Lost 4 | 1 3 . Power 2 | 1 1 . Propulsion . | . . . Utility . | . . . Weapon 2 | . 2 . Highest Loss Streak 2 | 1 2 . Average Slot Usage (%) 98 | . 96 100 Engine 13 | . 13 14 Leg 14 | . 14 14 Hover 13 | . 12 14 Storage 14 | . 14 14 Processor 14 | . 14 14 Ballistic Gun 26 | . 27 24 Slashing Weapon 1 | . . 4 Naked Turns . | . . . Heaviest Build 40 | 13 25 40 Greatest Support 40 | 40 22 22 Greatest Overweight (x) 7 | 1 7 1 Average Overweight (x) . | . 1 1 Largest Inventory Capacity 12 | 6 10 12 Average Capacity 6 | 5 9 11 Most Carried 9 | 6 7 9 Average Carried 5 | 5 5 8 Final Capacity 12 | 4 10 12 Final Carried 9 | 4 7 9 Class Distribution -------------------- 100% | Mutant Dominant Class ---------------- Mutant | -10/Materials Mutant | -10/Mines Resources | -11 -10 -10 ----------- Run | Scr Mat Min Matter Collected 950 | 635 245 70 Remotely . | . . . Salvage Created 565 | 128 393 44 Parts 46 | . 42 4 Haulers Intercepted . | . . . Recyclers Shooed 1 | . 1 . Parts Field Recycled . | . . . Retrieved Matter . | . . . Parts Self-Destructed . | . . . Prevented . | . . . Kills | -11 -10 -10 ------- Run | Scr Mat Min Combat Hostiles Destroyed 28 | 13 12 3 Guns 28 | 13 12 3 Classes Destroyed 5 | 1 4 . Worker 3 | . 3 . Watcher 3 | . 3 . Swarmer 11 | . 8 3 Grunt 4 | . 4 . Assembled 13 | 13 . . Best Kill Streak 6 | 5 6 3 Combat Bots Only 5 | 5 5 3 Max Kills in Single Turn 2 | 2 2 1 Gunslinging 1 | 1 . . Exploded . | . . . Melee . | . . . Uniques/NPCs Destroyed . | . . . Combat | -11 -10 -10 -------- Run | Scr Mat Min Damage Taken 1127 | 546 347 234 Core 252 | 111 61 80 Absorbed by Shields . | . . . Core Remaining (%) 55 | 55 . . Volleys Fired 103 | 50 43 10 Largest 2 | 2 2 2 Hottest 40 | 40 40 40 Shots Fired 194 | 100 74 20 Gun 194 | 100 74 20 Cannon . | . . . Launcher . | . . . Special . | . . . Kinetic 194 | 100 74 20 Thermal . | . . . Explosive . | . . . Electromagnetic . | . . . Robot Hit Streak 6 | 6 6 5 Robot Miss Streak 8 | 5 8 4 Penetration Max . | . . . Secondary Targets 5 | 4 . 1 Max Gunslinging Chain 1 | 1 . 1 Shots Hit Robots 102 | 51 36 15 Core Hits 48 | 22 23 3 Critical Hits 1 | 1 . . Critical Kills . | . . . Critical Parts Destroyed 1 | 1 . . Melee Attacks 6 | . . 6 Impact . | . . . Slashing 6 | . . 6 Piercing . | . . . Sneak Attacks 1 | . . 1 Combat Hostiles . | . . . Follow-up Attacks . | . . . Damage Inflicted 1334 | 460 516 358 Guns 1095 | 460 516 119 Cannons . | . . . Explosions . | . . . Melee 239 | . . 239 Ramming . | . . . Kinetic 1095 | 460 516 119 Thermal . | . . . Explosive . | . . . Electromagnetic . | . . . Impact . | . . . Slashing 239 | . . 239 Piercing . | . . . Highest Corruption 1 | . 1 1 Average Corruption 1 | . 1 1 Corruption Purged . | . . . Effects 5 | . 2 3 Message Errors 2 | . 1 1 Energy Discharges 3 | . 1 2 Overload Shots . | . . . Overflow Damage 117 | . . 117 Projectiles . | . . . Explosions . | . . . Melee 117 | . . 117 Knockbacks . | . . . Impact . | . . . Kinetic . | . . . Secondary . | . . . Self-Inflicted Damage . | . . . Shots . | . . . Rammed . | . . . Targets Rammed . | . . . Kicked . | . . . Crushed . | . . . Highest Temperature 39 | 39 . . Average Temperature 15 | 15 . . Received Heat Transfer 468 | 420 48 . Siege Activations . | . . . Robots Corrupted . | . . . Combat Hostiles . | . . . Parts Fried . | . . . Impact Corruptions . | . . . Robots Melted . | . . . Combat Hostiles . | . . . Parts Melted . | . . . Heat Transferred . | . . . Parts Sabotaged . | . . . Parts Stolen . | . . . Parts Stripped . | . . . Power Chain Reactions . | . . . Missiles Intercepted . | . . . Alert | -11 -10 -10 ------- Run | Scr Mat Min Peak Influence 333 | 30 333 134 Initial 64 | . . 64 Average 34 | . 132 110 Maximum Alert Level 1 | . 1 . Low Security (%) 96 | 100 81 100 Level 1 3 | . 18 . Level 2 . | . . . Level 3 . | . . . Level 4 . | . . . Level 5 . | . . . High Security . | . . . Max Security . | . . . Squads Dispatched 6 | . 6 . Investigation 2 | . 2 . Extermination . | . . . Reinforcement 4 | . 4 . Assault . | . . . Garrison . | . . . Intercept . | . . . Construction Impeded . | . . . Haulers Reinforced . | . . . Stealth | -11 -10 -10 --------- Run | Scr Mat Min Distress Signals 1 | . 1 . Communications Jammed . | . . . Distress Signals . | . . . Times Spotted 49 | 20 21 8 Peak Tracking Total 6 | 6 5 3 Tactical Retreats 7 | 5 1 1 Traps | -11 -10 -10 ------- Run | Scr Mat Min Traps Triggered 3 | . 3 . Indirectly . | . . . Trap Hack Attempts . | . . . Triggered . | . . . Disarmed . | . . . Reprogrammed . | . . . Reused . | . . . Traps Extracted . | . . . Installed . | . . . Triggered . | . . . Machines | -11 -10 -10 ---------- Run | Scr Mat Min Machines Disabled . | . . . Max in Single Turn . | . . . Machines Sabotaged . | . . . Garrisons Compromised . | . . . Overloaded Fab Kills . | . . . Fab Network Shutdowns . | . . . Hacking | -11 -10 -10 --------- Run | Scr Mat Min Machines Accessed 5 | . 5 . Terminals 3 | . 3 . Fabricators . | . . . Repair Stations 1 | . 1 . Recycling Units 1 | . 1 . Scanalyzers . | . . . Garrison Access . | . . . Total Hacks 18 | . 18 . Successful 10 | . 10 . Failed 8 | . 8 . Catastrophic 2 | . 2 . Database Lockouts . | . . . Manual . | . . . Terminals 10 | . 10 . Fabricators . | . . . Repair Stations 6 | . 6 . Recycling Units 2 | . 2 . Scanalyzers . | . . . Garrison Access . | . . . Terminal Hacks 4 | . 4 . Record 1 | . 1 . Prototype ID Bank 1 | . 1 . Emergency Access Points 1 | . 1 . Locate Traps 1 | . 1 . Fabricator Hacks . | . . . Repair Station Hacks 4 | . 4 . Scan Component 2 | . 2 . Repair 2 | . 2 . Recycling Unit Hacks 2 | . 2 . Process 1 | . 1 . Retrieve Matter 1 | . 1 . Scanalyzer . | . . . Garrison Access Hacks . | . . . Unauthorized Hacks . | . . . Terminals . | . . . Fabricators . | . . . Repair Stations . | . . . Recycling Units . | . . . Scanalyzers . | . . . Garrison Access . | . . . Data Cores Recovered . | . . . Used . | . . . Hacking Detections 3 | . 3 . Full Trace Events 3 | . 3 . Feedback Events . | . . . Feedback Blocked . | . . . Robot Schematics Acquired . | . . . Robots Built . | . . . Matter . | . . . Time . | . . . Total Robot Build Rating . | . . . Part Schematics Acquired . | . . . Parts Built . | . . . Matter . | . . . Time . | . . . Total Part Build Rating . | . . . Parts Repaired 2 | . 2 . Time 76 | . 76 . Parts Recycled . | . . . Recycled Matter 132 | . 132 . Retrieved Matter 341 | . 341 . Retrieved Components . | . . . Parts Scanalyzed . | . . . Part Schematics Acquired . | . . . Parts Damaged . | . . . Bothacking | -11 -10 -10 ------------ Run | Scr Mat Min Used RIF Installer . | . . . Robots Hacked . | . . . Non-combat . | . . . Combat . | . . . Robot Hacks Applied . | . . . Relay Couplers Released . | . . . Robots Rewired . | . . . Allies Hacked . | . . . Hacks Repelled . | . . . Allies | -11 -10 -10 -------- Run | Scr Mat Min Total Allies . | . . . Largest Group . | . . . Highest-Rated Group . | . . . Highest-Rated Ally . | . . . Total Orders . | . . . Ally Attacks . | . . . Total Damage . | . . . Kills . | . . . Allies Corrupted . | . . . Allies Melted . | . . . Intel | -11 -10 -10 ------- Run | Scr Mat Min Robot Analysis Total . | . . . Derelict Logs Recovered 1 | . . 1 Drone Launches . | . . . Drone Recoveries . | . . . Exploration | -11 -10 -10 ------------- Run | Scr Mat Min Turns Passed 4191 | 3052 721 418 Spaces Moved 1434 | 902 300 232 Core 7 | 5 2 . Treads 352 | 352 . . Legs 211 | 206 5 . Wheels . | . . . Hover 864 | 339 293 232 Flight . | . . . Fastest Speed 50 | 50 90 160 Average Speed 137 | 124 158 160 Slowest Speed 400 | 160 400 160 Overloaded Moves . | . . . Propulsion Burnouts . | . . . Robots Hopped . | . . . Cave-ins Triggered . | . . . Exploration Rate (%) 56 | 70 44 54 Regions Visited 2 Branch Regions 1 Pre-discovered Areas . | . . . Known Exits Taken . | . . . Unknown Exits Taken 2 | 1 1 . Scrap Searched 2 | . . 2 Spaces Dug 1 | . . 1 Terrain Destroyed 1 | . . 1 Melee 1 | . . 1 Projectile . | . . . AOE . | . . . Terrain Rammed . | . . . Walls Destroyed . | . . . Machines Disabled . | . . . Actions | -11 -10 -10 --------- Run | Scr Mat Min Total 3455 | 2733 470 252 Wait 1867 | 1755 111 1 Move 1432 | 901 299 232 Hop . | . . . Pick Up 11 | 6 4 1 Fast Attach 18 | 11 7 . Attach 4 | 3 1 . Detach 4 | 3 1 . Swap 3 | . 1 2 Drop 7 | 4 3 . Fire 103 | 50 43 10 Melee 6 | . . 6 Ram . | . . . Kick . | . . . Crush . | . . . Escape Stasis . | . . . Rewire . | . . . Trap . | . . . Miscellaneous . | . . . Route ------- -11/Scrapyard -10/Materials -10/Mines History --------- Turn | Location | Event 5 | -11/Scrapyard | Discovered new exit (range 15) 1521 | -11/Scrapyard | Assembled infested the area 3053 | -11/Scrapyard | Entered Materials 3054 | -10/Materials | Build established: Mutant 3250 | -10/Materials | Core integrity fell below 50% 3609 | -10/Materials | Repaired Cmb. Airjet 3636 | -10/Materials | Repaired Lgt. Ion Engine 3751 | -10/Materials | Discovered new exit (range 8) 3774 | -10/Materials | Entered Mines 4070 | -10/Mines | A weapon hastily lodged in a ceiling crevice suddenly fell to the ground 4147 | -10/Mines | Learned Materials terminal intel 4181 | -10/Mines | Core integrity fell below 20% 4192 | -10/Mines | Destroyed by S-10 Pest with Light Assault Rifle Last Messages --------------- 03886_ System corrupted: Energy discharge (-48). 03886_ S-10 Pest destroyed. 03886_ Switching to secondary target: S-10 Pest. 03887_ Acquired 12 matter. 03889_ S-10 Pest destroyed. 03890_ Acquired 6 matter. 03988_ K-01 Serf collects debris. 04009_ UVKGK8CL /70SW=S0ZK CSF29RPOE54EP E L 04010_ K-01 Serf collects debris. 04070_ A Mak. Axe has been hastily shoved under some rubble with a note attached: "Chop chop!" 04073_ Acquired Mak. Axe. 04101_ System corrupted: Energy discharge (-48). 04145_ Sneak attack on T-07 Excavator. 04145_ Destroyed Wheel. 04145_ Destroyed Mining Laser. 04145_ Destroyed Lgt. Ion Engine. 04147_ Acquired derelict log, extracted data. Data stored: Materials terminal intel. 04187_ Destroyed Flight Unit. Map ----- +----------------------------------------------------+ | #### ##????????????????????????????????????????? | | #????????????????????????????????????????? | | ##???????????????????????????????????????? | | ##### #???????????????????????????????????????? | | ????# ###????###??????????????????????????????? | | ????# ### ?? ??????????????????????????????? | | ????## ### #? ??????????????????????????????? | | ?????# #? ??????????????????????????????? | | ?????# ### #?? #?????????????????????????????? | | ?????# #?# ### #?????????????????????????????? | | ?????# ##? ? #?????????????????????????????? | | ###### ### #?# #??????????????????????????????? | | # ## ### #??????????????????????????????? | | #??????????????????????????????? | | """ #??????????????????????????????? | | # """ ##?????????????????????????????? | | ## ### """ ##########???###??????????????? | | ?# #?# #??# ##?????????????? | | ?## #?## ###### #?# ##????????????? | | ??## #?###" #????? ## ?????????????? | | ???## #??### ##????? # ??????????????? | | ????## #???# ##????? ????????????????? | | ?????# #???# #????? #?????????????????? | | ?????## #???## #?????# #??????????????????? | | ???????# #???## ####### s ##?????????????????? | | ???????? ???# s @s #?????????????????? | | ???????? #??## #?????????????????? | | ????????# ##???############# ##?????????????????? | | ?????????##?????????????????###??????????????????? | | ?????????????????????????????????????????????????? | | ?????????????????????????????????????????????????? | | ?????????????????????????????????????????????????? | | | | | | | | | | | | | | | | | | | | | | | | | | | | | | | | | | | | | +----------------------------------------------------+ Best States ------------- Heat Dissipation 25 Energy Generation 10 Energy Capacity 250 Matter Stores 300 Matter Capacity 300 Sight Range 16 Terrain Scan Range 16 Terrain Scan Density 60 Armor Coverage 150 Evasion (%) 47 Recoil Reduction 2 Item Schematics ----------------- None Robot Schematics ------------------ None Fabricated ------------ Nothing Alien Tech Used ----------------- None Achievements -------------- None Challenges ------------ None Game ------ Seed ZioniteAntimissileEdition Manual? 0 Play Time 00:18:11 Cumulative 14.6 hours Start 2020.10.28 @ 22:21:09 End 2020.10.28 @ 22:37:05 Sessions 1 Manual Loads 0 Difficulty Rogue Special Mode None Game No. 23 Rogue 23 Adventurer 0 Explorer 0 Win Type - Total 0 Types 0/0/0/0/0/0/0/0/0 Lore% 19 Gallery% 20 Achievement% 18 Wizard Run 0 Options --------- ASCII 0 Keyboard 0 Movement Mouse Keybinds 0 Fullscreen 2 Font 18/SmallcapsGlow Map View 76x50 Tactical HUD 1 Map Filters NONE Filters NONE Steam X RUN: 5ff4a169-fb1d-49ac-a35a-eb049316b131